[Event "Swiss Championship 2024"]
[Site "Flims"]
[Date "2024.07.14"]
[Round "2.2"]
[White "Georgiadis, Nico"]
[Black "Georgiadis, Ioannis"]
[Result "1/2-1/2"]
[ECO "A62"]
[WhiteElo "2512"]
[BlackElo "2483"]
[Annotator "TA"]
[PlyCount "61"]
[EventDate "2024.07.10"]
[EventType "tourn"]
[EventCountry "SUI"]
[SourceTitle "playchess.com"]
[Source "ChessBase"]
[SourceQuality "1"]
[TimeControl "40/5400+30:1800+30"]

{[%evp 18,61,9,15,13,0,5,0,0,0,0,-3,7,6,30,16,6,20,13,19,6,6,52,42,45,36,55,60,49,44,42,47,51,8,9,0,0,0,-6,0,0,14,40,26,161,140]} 1. d4 {[%emt 0:00:15]} Nf6 {[%emt 0:00:22]} 2. c4 {[%emt 0:00:07]} e6 {[%emt 0:00:39]} 3. g3 {[%emt 0:00:06]} c5 {[%emt 0:00:57]} 4. d5 {[%emt 0:00:35]} exd5 {[%emt 0:00:06]} 5. cxd5 {[%emt 0:00:07]} d6 {[%emt 0:00:04]} 6. Nc3 {[%emt 0:00:10]} g6 {[%emt 0:00:09]} 7. Bg2 {[%emt 0:00:11]} Bg7 {[%emt 0:00:04]} 8. Nf3 {[%emt 0:00:06]} O-O {[%emt 0:00:05]} 9. O-O {[%emt 0:00:07]} Re8 {[%emt 0:01:57]} 10. Bf4 {[%emt 0:00:15]} Bf5 {[%emt 0:00:28]} 11. Nh4 {[%emt 0:01:34]} Bg4 {[%emt 0:00:26]} 12. h3 {[%emt 0:07:12]} Nh5 {[%emt 0:01:47] The position is equal.} 13. Bc1 {[%emt 0:08:32]} Bd7 {[%emt 0:16:18]} 14. a4 {[%emt 0:10:19]} Na6 {[%emt 0:01:50]} 15. Nf3 {[%emt 0:00:16]} Nc7 {[%emt 0:06:54]} 16. Re1 {[%emt 0:20:45]} b5 {[%emt 0:12:16]} 17. axb5 {[%emt 0:00:11]} Nxb5 {[%emt 0:00:10]} 18. Nxb5 {[%emt 0:00:29]} Bxb5 {[%emt 0:00:05]} 19. e4 {[%emt 0:01:38]} Qb6 {[%emt 0:01:43]} (19... a5 $11 {deserves consideration.}) 20. Qc2 $14 {[%emt 0:08:03]} Nf6 {[%emt 0:08:37]} 21. Bd2 {[%emt 0:02:38]} a5 {[%emt 0:02:32]} 22. e5 {[%emt 0:12:59]} dxe5 {[%emt 0:09:23]} 23. Nxe5 {[%emt 0:00:13]} a4 $1 {[%emt 0:00:15]} 24. Bc3 {[%emt 0:01:38]} Qd6 {[%emt 0:02:08][%cal Of6d7]} 25. Rad1 {[%emt 0:02:37]} a3 {[%emt 0:04:31]} 26. bxa3 {[%emt 0:14:26] Black must now prevent Rb1.} Ba4 $1 {[%emt 0:00:20]} 27. Nc4 {[%emt 0:03:09] [#] Strongly threatening Qxa4.} Qa6 {[%emt 0:02:01]} 28. Qd3 {[%emt 0:02:01]} Bxd1 {[%emt 0:02:31]} 29. Rxd1 {[%emt 0:00:04]} Rab8 {[%emt 0:02:13] Threatens to win with ...Rb3.} 30. Be5 {[%emt 0:00:52][%mdl 1024] White has compensation. A strong pair of Bishops.} ({Much weaker is} 30. d6 Rb3 31. Rc1 Rxa3 $15 (31... Nd7 32. Bd5 $11)) 30... Rbd8 {[%emt 0:06:27] [#]} (30... Rbc8 $11) 31. Bc7 $1 {[%emt 0:01:06] Weighted Error Value: White=0.06 (flawless) /Black=0.16 (very precise) .  Mistake:       	---       	Black=2      Inaccurate:     	White=1     	Black=1      OK:         	White=9     	Black=9      Strong:       	White=1     	Black=2} 1/2-1/2

[Event "Swiss Championship 2024"]
[Site "Flims"]
[Date "2024.07.14"]
[Round "2.3"]
[White "Baenziger, Fabian"]
[Black "Kurmann, Oliver"]
[Result "1/2-1/2"]
[ECO "A25"]
[WhiteElo "2410"]
[BlackElo "2428"]
[Annotator "TA"]
[PlyCount "60"]
[EventDate "2024.07.10"]
[EventType "tourn"]
[EventCountry "SUI"]
[SourceTitle "playchess.com"]
[Source "ChessBase"]
[SourceQuality "1"]
[TimeControl "40/5400+30:1800+30"]

{[%evp 12,60,20,0,9,3,2,-1,8,-10,-4,-19,0,-20,-8,-16,-19,-29,0,0,19,26,12,20,25,11,12,0,0,0,17,-60,-20,-31,-27,-25,-10,-7,-10,-11,0,0,0,0,0,0,0,0,0,0,0]} 1. c4 {[%emt 0:00:04]} e5 {[%emt 0:00:17]} 2. d3 {[%emt 0:00:18]} Nc6 {[%emt 0:03:23]} 3. Nf3 {[%emt 0:00:27]} Nge7 {[%emt 0:01:33]} 4. Nc3 {[%emt 0:00:37]} g6 {[%emt 0:02:23]} 5. g3 {[%emt 0:02:55]} Bg7 {[%emt 0:00:34]} 6. Bg2 {[%emt 0:00:08]} O-O {[%emt 0:00:13]} 7. O-O {[%emt 0:00:41]} Nd4 {[%emt 0:00:26]} 8. e3 {[%emt 0:06:18]} Nxf3+ {[%emt 0:00:09]} 9. Bxf3 {[%emt 0:00:06]} c6 {[%emt 0:03:58]} 10. Bd2 {[%emt 0:15:36]} d6 {[%emt 0:03:50]} 11. b4 {[%emt 0:01:15]} d5 {[%emt 0:03:35]} 12. cxd5 {[%emt 0:06:55]} cxd5 {[%emt 0:01:02]} 13. Rc1 {[%emt 0:00:03]} Be6 {[%emt 0:00:37]} 14. Qa4 {[%emt 0:01:45]} f5 {[%emt 0:08:33]} 15. Bg2 {[%emt 0:02:43]} e4 {[%emt 0:08:54]} 16. Ne2 {[%emt 0:04:46]} Nc6 {[%emt 0:03:37]} 17. Nf4 {[%emt 0:07:35]} Bf7 {[%emt 0:00:19]} 18. b5 {[%emt 0:00:45]} Ne5 {[%emt 0:30:59]} 19. Ba5 {[%emt 0:01:39]} Qf6 {[%emt 0:02:15]} 20. Bc3 {[%emt 0:09:37]} g5 {[%emt 0:00:52] [#]} 21. Qd1 {[%emt 0:03:32]} Qe7 {[%emt 0:08:15]} ({Much weaker is} 21... gxf4 $6 22. gxf4 Qe7 23. fxe5 $14 (23. Bxe5 Bxe5 24. fxe5 Qxe5 $14)) 22. Bxe5 {[%emt 0:02:33]} Bxe5 {[%emt 0:00:02]} 23. Ne2 {[%emt 0:00:06]} Rfc8 {[%emt 0:05:31]} 24. dxe4 {[%emt 0:08:20] The position is equal.} dxe4 {[%emt 0:00:02]} 25. Qa4 {[%emt 0:00:05][%cal Og3g4]} Bh5 {[%emt 0:06:54] This pair of bishops is nice.} 26. Nd4 {[%emt 0:00:23]} Qd7 {[%emt 0:00:41]} 27. Rxc8+ {[%emt 0:03:59]} Rxc8 {[%emt 0:02:06]} 28. Qxa7 {[%emt 0:00:06]} Bxd4 {[%emt 0:00:06]} 29. Qxd4 {[%emt 0:00:15]} Qxd4 {[%emt 0:00:11]} 30. exd4 {[%emt 0:00:09]} Be2 {[%emt 0:02:12] Weighted Error Value: White=0.09 (flawless) /Black=0.11 (very precise) .  Mistake:       	White=1     	---        Inaccurate:     	---       	Black=2      OK:         	White=13    	Black=8} 1/2-1/2

[Event "Swiss Championship 2024"]
[Site "Flims"]
[Date "2024.07.14"]
[Round "2.4"]
[White "Fischer, Daniel"]
[Black "Wyss, Jonas"]
[Result "1-0"]
[ECO "C03"]
[WhiteElo "2372"]
[BlackElo "2291"]
[Annotator "TA"]
[PlyCount "47"]
[EventDate "2024.07.10"]
[EventType "tourn"]
[EventCountry "SUI"]
[SourceTitle "playchess.com"]
[Source "ChessBase"]
[SourceQuality "1"]
[TimeControl "40/5400+30:1800+30"]

{[%evp 21,47,0,0,0,0,-22,-21,-33,-20,-27,-22,-24,-23,-24,0,-14,10,16,175,171,177,181,174,175,545,512,507,498]} 1. e4 {[%emt 0:00:03]} e6 {[%emt 0:00:14]} 2. d4 {[%emt 0:00:05]} d5 {[%emt 0:00:16]} 3. Nd2 {[%emt 0:00:05]} c5 {[%emt 0:00:26]} 4. exd5 {[%emt 0:00:25]} Qxd5 {[%emt 0:00:18]} 5. dxc5 {[%emt 0:00:26]} Nf6 {[%emt 0:01:20]} 6. Ngf3 {[%emt 0:01:54]} Qxc5 {[%emt 0:02:32]} 7. Bd3 {[%emt 0:00:26]} Be7 {[%emt 0:04:37]} 8. O-O {[%emt 0:01:34]} Nbd7 {[%emt 0:06:21]} 9. Ne4 {[%emt 0:06:09]} Nxe4 {[%emt 0:03:10]} 10. Bxe4 {[%emt 0:01:08]} Nf6 {[%emt 0:00:23]} 11. Bd3 {[%emt 0:00:07]} O-O {[%emt 0:02:54]} 12. Re1 {[%emt 0:06:00]} b6 {[%emt 0:07:08]} 13. Ne5 {[%emt 0:07:11]} Bb7 {[%emt 0:03:03] Prevents Qf3.} 14. Qe2 {[%emt 0:02:35] The position is equal.} Rad8 {[%emt 0:08:20]} 15. c3 {[%emt 0:15:48]} Qd5 {[%emt 0:14:24][%csl Gb7][%cal Rd5g2] [#]} 16. f3 {[%emt 0:01:50]} Bd6 {[%emt 0:05:38] Strongly threatening ...Qxe5.} 17. Bc2 {[%emt 0:06:22]} Nh5 {[%emt 0:13:29]} 18. Kh1 {[%emt 0:05:47]} f6 {[%emt 0:10:02]} 19. Ng4 {[%emt 0:03:26]} f5 {[%emt 0:04:19] [#] Against Be4. Loses the game.} (19... Kh8 $11) 20. Bb3 $1 $18 {[%emt 0:04:09]} Qc5 {[%emt 0:03:37]} 21. Qxe6+ $40 {[%emt 0:07:22][%mdl 128] White is out for blood.} (21. Bxe6+ Kh8 22. Be3 Qc7 $19) 21... Kh8 {[%emt 0:00:01]} 22. Ne5 {[%emt 0:00:23]} Qc7 $2 {[%emt 0:04:31]} (22... Bxe5 23. Qxe5 (23. Rxe5 Qf2 $18) 23... Qxe5 24. Rxe5 Rde8 25. Rxe8 Rxe8) 23. Nf7+ {[%emt 0:03:52]} Rxf7 {[%emt 0:02:32]} 24. Qxf7 {[%emt 0:00:05] Weighted Error Value: White=0.03 (flawless) /Black=0.62.  Mistake:       	---       	Black=2      OK:         	White=6     	Black=5      Best:        	White=2     	Black=1      Strong:       	White=1     	---} 1-0

[Event "Swiss Championship 2024"]
[Site "Flims"]
[Date "2024.07.14"]
[Round "2.5"]
[White "Peng, Li Min"]
[Black "Stijve, Theo"]
[Result "1/2-1/2"]
[ECO "A01"]
[WhiteElo "2562"]
[BlackElo "2328"]
[Annotator "RC"]
[PlyCount "85"]
[EventDate "2024.07.10"]
[EventType "tourn"]
[EventCountry "SUI"]
[SourceTitle "playchess.com"]
[Source "ChessBase"]
[SourceQuality "1"]
[TimeControl "40/5400+30:1800+30"]

1. b3 {[%emt 0:00:34]} e5 {[%emt 0:00:39]} 2. Bb2 {[%emt 0:00:13]} Nc6 {[%emt 0:00:10]} 3. e3 {[%emt 0:00:18]} d5 {[%emt 0:07:49]} 4. Bb5 {[%emt 0:00:12]} Nge7 {[%emt 0:00:55]} 5. Nf3 {[%emt 0:00:05]} f6 {[%emt 0:04:24]} 6. d4 {[%emt 0:26:39]} e4 {[%emt 0:04:40]} 7. Nfd2 {[%emt 0:00:04]} a6 {[%emt 0:02:11]} 8. Be2 {[%emt 0:00:06]} Be6 {[%emt 0:05:45]} 9. c4 {[%emt 0:00:11]} f5 {[%emt 0:00:28]} 10. O-O {[%emt 0:10:44]} g6 {[%emt 0:04:09]} 11. f3 {[%emt 0:00:05]} exf3 {[%emt 0:06:02]} 12. Nxf3 {[%emt 0:00:02]} Bh6 {[%emt 0:00:38]} 13. Qd2 {[%emt 0:00:15]} O-O {[%emt 0:04:36]} 14. Nc3 {[%emt 0:00:03]} Qd7 {[%emt 0:06:28]} 15. Rfe1 {[%emt 0:00:04]} Rad8 {[%emt 0:06:44]} 16. Rad1 {[%emt 0:00:02]} g5 {[%emt 0:05:01]} 17. Na4 {[%emt 0:00:03]} b6 {[%emt 0:03:05]} 18. Ne5 {[%emt 0:00:05]} Nxe5 {[%emt 0:04:28]} 19. dxe5 {[%emt 0:00:04]} g4 {[%emt 0:04:59]} 20. Nc3 {[%emt 0:19:34]} Qc8 {[%emt 0:03:43]} 21. cxd5 {[%emt 0:00:50]} Nxd5 {[%emt 0:00:47]} 22. Nxd5 {[%emt 0:01:30]} Rxd5 {[%emt 0:01:50]} 23. Qc3 {[%emt 0:00:03]} Rxd1 {[%emt 0:07:51]} 24. Rxd1 {[%emt 0:00:04]} Rd8 {[%emt 0:00:07]} 25. Rxd8+ {[%emt 0:02:42]} Qxd8 {[%emt 0:02:14]} 26. Bxa6 {[%emt 0:03:01]} Qd1+ {[%emt 0:02:08]} 27. Kf2 {[%emt 0:00:03]} Bg5 {[%emt 0:02:06]} 28. Bf1 {[%emt 0:14:17]} Qb1 {[%emt 0:04:07]} 29. a3 {[%emt 0:04:35]} Qd1 {[%emt 0:01:30]} 30. b4 {[%emt 0:00:03]} Bh4+ {[%emt 0:03:33]} 31. Kg1 {[%emt 0:00:42]} Bg5 {[%emt 0:00:05]} 32. Bc1 {[%emt 0:01:08]} b5 {[%emt 0:01:26]} 33. Qd2 {[%emt 0:00:46]} Qxd2 {[%emt 0:01:12]} 34. Bxd2 {[%emt 0:00:05]} c6 {[%emt 0:00:19]} 35. Bd3 {[%emt 0:00:22]} Kf7 {[%emt 0:00:52]} 36. Kf2 {[%emt 0:00:06]} h5 {[%emt 0:00:38]} 37. g3 {[%emt 0:01:24]} h4 {[%emt 0:00:18]} 38. Ke2 {[%emt 0:00:12]} h3 {[%emt 0:00:51]} 39. Bc3 {[%emt 0:07:14]} Ke7 {[%emt 0:00:19]} 40. Bd4 {[%emt 0:00:36]} Kd7 {[%emt 0:00:45]} 41. Kf2 {[%emt 0:31:05]} Bh6 {[%emt 0:03:29]} 42. Bc2 {[%emt 0:00:00]} Ke7 {[%emt 0:04:00]} 43. Bc5+ {[%emt 0:00:00]} 1/2-1/2

[Event "Swiss Championship 2024"]
[Site "Flims"]
[Date "2024.07.15"]
[Round "3.1"]
[White "Stijve, Theo"]
[Black "Bogner, Sebastian"]
[Result "0-1"]
[ECO "E47"]
[WhiteElo "2328"]
[BlackElo "2547"]
[Annotator "TA"]
[PlyCount "94"]
[EventDate "2024.07.10"]
[EventType "tourn"]
[EventCountry "SUI"]
[SourceTitle "playchess.com"]
[Source "ChessBase"]
[SourceQuality "1"]
[TimeControl "40/5400+30:1800+30"]

{[%evp 46,94,44,34,37,-44,0,-57,41,38,62,24,75,70,108,90,116,103,108,12,10,23,43,-250,50,-584,-270,-297,-258,-302,-290,-445,-435,-414,-370,-638,-432,-579,-571,-642,-602,-774,-745,-730,-575,-4927,-4918,-29989,-29990,-29997,-29998]} 1. d4 {[%emt 0:00:03]} Nf6 {[%emt 0:00:42]} 2. c4 {[%emt 0:00:09]} e6 {[%emt 0:00:04]} 3. Nc3 {[%emt 0:00:09]} Bb4 {[%emt 0:00:37]} 4. e3 {[%emt 0:00:10]} O-O {[%emt 0:01:54]} 5. Bd3 {[%emt 0:00:09]} Re8 {[%emt 0:04:03]} 6. Nf3 {[%emt 0:02:40] E47: Nimzoindisch (Moderne Variante).} d6 {[%emt 0:02:07]} 7. O-O {[%emt 0:05:42]} Nbd7 {[%emt 0:18:02]} 8. Ne2 $146 {[%emt 0:11:05]} ({Predecessor:} 8. Ne4 Nxe4 9. Bxe4 c6 10. a3 Ba5 11. b4 Bc7 12. Bb2 Qe7 13. Bc2 e5 14. e4 {0-1 Drygalov,A (2494)-Artemiev,V (2697) Moscow op-A 18th 2022 (4)}) 8... d5 {[%emt 0:11:28]} 9. b3 {[%emt 0:14:20]} b6 {[%emt 0:04:34]} 10. Bb2 {[%emt 0:03:58]} Bb7 {[%emt 0:00:10]} 11. Qc2 {[%emt 0:04:34]} Bd6 {[%emt 0:05:07]} 12. Ne5 {[%emt 0:06:00]} dxc4 {[%emt 0:10:20]} 13. Nxc4 {[%emt 0:05:28]} e5 {[%emt 0:08:03]} 14. Nxd6 {[%emt 0:07:42]} cxd6 {[%emt 0:00:02]} 15. Ng3 {[%emt 0:01:23]} e4 {[%emt 0:02:01]} 16. Bb5 {[%emt 0:02:31]} Nd5 {[%emt 0:05:04]} 17. Ba3 {[%emt 0:08:33]} Rc8 {[%emt 0:05:14]} 18. Qd2 {[%emt 0:01:01]} a6 {[%emt 0:00:21]} 19. Be2 {[%emt 0:05:36]} N7f6 {[%emt 0:01:33]} 20. Nf5 {[%emt 0:02:28]} Re6 {[%emt 0:00:04]} 21. Rfc1 {[%emt 0:02:41]} Ra8 {[%emt 0:00:35]} 22. Rc2 {[%emt 0:01:29]} Ne8 {[%emt 0:00:48]} 23. Bg4 {[%emt 0:02:19]} Rg6 {[%emt 0:01:21]} (23... Qg5 $11 24. Bh3 g6) 24. Bh3 $14 {[%emt 0:00:52]} Bc8 {[%emt 0:02:38]} 25. Rac1 {[%emt 0:00:59]} (25. Rxc8 $14 Rxc8 26. Ng3) 25... Bd7 {[%emt 0:00:25]} (25... Rg5 $2 26. Rxc8 (26. Nh6+ gxh6 27. Rxc8 Rxc8 $18) 26... Rxc8 27. Rxc8 (27. Nh6+ gxh6 28. Rxc8 Qe7 $18) 27... Qxc8 28. Nh6+ (28. Bxd6 $2 Rxf5 29. Be5 h6 $19) 28... gxh6 29. Bxc8 $18) (25... Be6 $5 26. f3 exf3 $15) 26. Qe2 {[%emt 0:04:34]} ({Besser ist} 26. g3 $11) 26... b5 {[%emt 0:01:14]} ({Günstiger ist} 26... Qg5 $1 $15 27. f4 Qd8) 27. f3 $1 $14 {[%emt 0:01:53]} Ndf6 $1 {[%emt 0:06:17]} 28. Kh1 {[%emt 0:02:22]} (28. Bxd6 $2 Nxd6 29. Rc5 Bxf5 30. Bxf5 Nxf5 31. Rxf5 Rc8 $19) 28... Rb8 {[%emt 0:02:48]} (28... a5 $11 {hält das Gleichgewicht.}) 29. d5 $16 {[%emt 0:02:50]} (29. Bxd6 $2 Nxd6 30. fxe4 Ndxe4 $19 (30... Nfxe4 $2 31. Nxd6 Rxd6 32. Bxd7 $19)) 29... Rg5 {[%emt 0:03:18]} 30. fxe4 {[%emt 0:00:33]} (30. Nxd6 $2 Bxh3 (30... Nxd5 $2 31. Nxe4 Re5 32. Bxd7 $18) 31. Nxe8 Rxg2 (31... Bxg2+ 32. Qxg2 Rxg2 33. Nxf6+ Kh8 34. Kxg2 $15) 32. Nxf6+ Qxf6 $19) 30... Nxe4 {[%emt 0:00:07]} 31. Qf3 {[%emt 0:00:24]} N8f6 {[%emt 0:01:56]} 32. Rc7 {[%emt 0:01:11]} (32. Nxd6 Bxh3 33. Nxe4 Nxe4 34. gxh3 (34. Qxh3 Rxd5 35. Qf3 Qe8 $14) (34. Qxe4 Bf5 $15) 34... Re5 $14) (32. Bb2 $16) 32... b4 $11 {[%emt 0:00:56]} 33. Bb2 {[%emt 0:00:35]} Nc3 {[%emt 0:00:58]} 34. Ra7 $2 {[%emt 0:00:30][%mdl 8192]} (34. Bxc3 $14 {bleibt weiter vorne.} Qxc7 35. Bb2) 34... Qb6 $2 {[%emt 0:01:26] [#]} (34... Bxf5 $19 35. Bxf5 Qb6) 35. Nxg7 $2 {[%emt 0:00:33][%mdl 8192]} (35. Ne7+ $1 $14 {behält die Oberhand.} Kf8 36. Rxd7 Nxd7 37. Nc6) 35... Qxa7 {[%emt 0:00:51]} (35... Bxh3 $142 36. Qxh3 Qxa7) 36. Qxf6 $19 {[%emt 0:00:23]} Qxe3 {[%emt 0:00:34]} (36... Rxg7 37. Rxc3) 37. Bxd7 {[%emt 0:00:37]} Qd2 {[%emt 0:00:40]} 38. Qf1 {[%emt 0:00:30]} (38. g3 $142 Rg6 (38... Rxg7 $2 39. Rxc3 bxc3 40. Bxc3 $19) (38... Qxd5+ $2 39. Kg1 $19) 39. Qf1 Rxg7 (39... Kxg7 $2 40. Qg2 $19) 40. Qg2) 38... Rxg7 $19 {[%emt 0:00:27]} (38... Qxb2 $2 39. Nf5 $19) 39. Ba1 {[%emt 0:00:30]} Rd8 {[%emt 0:00:32]} (39... Qxd5 40. a3 $17) (39... Qxa2 40. Bxc3 bxc3 41. Rxc3) (39... Nxa2 40. Rd1 Qg5 41. Bxg7 Kxg7 42. Qxa6 $17) 40. Bc6 $2 {[%emt 0:00:30]} (40. Re1) 40... Rg6 {[%emt 0:00:33]} (40... Nxa2 41. Rd1 Qc2 42. Bxg7 Kxg7 43. Re1 $11) 41. a3 {[%emt 0:09:56]} a5 {[%emt 0:03:29]} (41... Nxd5 42. Bxd5 Qxd5 43. axb4 $19) 42. axb4 {[%emt 0:06:29]} axb4 {[%emt 0:00:03]} ({Minderwertig wäre} 42... Nxd5 43. bxa5 Ne3 (43... Qxa5 44. b4 $11) 44. Qe1 Qxe1+ 45. Rxe1 $11) 43. Bxc3 {[%emt 0:05:24]} bxc3 {[%emt 0:00:21]} 44. h3 {[%emt 0:01:47]} Rb8 {[%emt 0:02:01]} 45. Ra1 {[%emt 0:01:15]} c2 {[%emt 0:02:36]} 46. Kh2 {[%emt 0:02:45]} Rxb3 {[%emt 0:00:51]} 47. Ra7 {[%emt 0:05:04]} Rxh3+ {[%emt 0:24:45]} 0-1

[Event "Swiss Championship 2024"]
[Site "Flims"]
[Date "2024.07.15"]
[Round "3.2"]
[White "Wyss, Jonas"]
[Black "Peng, Li Min"]
[Result "0-1"]
[ECO "B13"]
[WhiteElo "2291"]
[BlackElo "2562"]
[Annotator "TA"]
[PlyCount "74"]
[EventDate "2024.07.10"]
[EventType "tourn"]
[EventCountry "SUI"]
[SourceTitle "playchess.com"]
[Source "ChessBase"]
[SourceQuality "1"]
[TimeControl "40/5400+30:1800+30"]

{[%evp 9,74,21,22,7,17,-23,-10,-8,0,-12,-8,-30,-33,-36,-40,-33,-39,-33,-47,-45,-42,-39,-43,-77,-77,-90,-83,-87,-81,-88,-86,-91,-81,-101,-84,-92,-85,-88,-80,-141,-123,-137,-115,-269,-288,-376,-364,-370,-357,-359,-379,-462,-466,-512,-496,-1390,-1170,-1402,-1295,-1395,-1377,-1216,-1216,-809,-767,-29986,-354]} 1. e4 {[%emt 0:00:04]} c6 {[%emt 0:00:13]} 2. d4 {[%emt 0:00:33]} d5 {[%emt 0:00:06]} 3. exd5 {[%emt 0:00:24]} cxd5 {[%emt 0:00:07]} 4. Nf3 {[%emt 0:00:23]} Nc6 {[%emt 0:01:06]} 5. Bb5 {[%emt 0:00:50]} Bg4 {[%emt 0:00:57]} 6. c4 {[%emt 0:02:16] next cxd5 is good for White.} e6 {[%emt 0:06:20]} 7. c5 {[%emt 0:09:21]} Bxf3 {[%emt 0:09:47]} 8. Qxf3 {[%emt 0:01:39] The position is equal.} g6 {[%emt 0:00:06]} 9. O-O {[%emt 0:06:56]} Bg7 {[%emt 0:00:05]} 10. Rd1 {[%emt 0:01:38]} (10. Bxc6+ {simplifies} bxc6 11. Qd3 Qb8 12. Nc3) 10... Nge7 {[%emt 0:03:03]} 11. Bg5 {[%emt 0:04:21]} O-O {[%emt 0:00:40]} 12. Bf6 {[%emt 0:02:06]} Bxf6 {[%emt 0:02:17]} 13. Qxf6 {[%emt 0:00:10]} Nf5 {[%emt 0:00:02]} 14. Qxd8 {[%emt 0:00:26]} Rfxd8 {[%emt 0:00:05]} 15. Bxc6 {[%emt 0:01:37]} bxc6 {[%emt 0:00:04]} 16. Nc3 {[%emt 0:00:25]} Rab8 {[%emt 0:02:03]} 17. b3 {[%emt 0:10:57]} Rb4 {[%emt 0:00:08]} 18. Ne2 {[%emt 0:00:14]} a5 {[%emt 0:00:14] Black is more active.} 19. g4 {[%emt 0:05:01]} Nh4 {[%emt 0:00:05][%cal Oe6e5]} 20. f4 {[%emt 0:06:52]} a4 {[%emt 0:10:38]} 21. Rd3 {[%emt 0:01:10]} h6 {[%emt 0:00:55]} 22. Rb1 {[%emt 0:07:43]} Rdb8 {[%emt 0:04:52]} 23. Kf2 {[%emt 0:00:28]} g5 {[%emt 0:00:04]} 24. fxg5 {[%emt 0:11:44]} ({Better is} 24. a3 Rxb3 25. Rdxb3 axb3 26. Rb2) 24... hxg5 $17 {[%emt 0:00:05]} 25. Nc1 {[%emt 0:14:31]} f5 {[%emt 0:12:14]} 26. a3 $2 {[%emt 0:06:45] This move loses the game for White.} (26. gxf5 $17 Nxf5 27. Ne2) 26... Rc4 $19 {[%emt 0:00:06]} 27. bxc4 {[%emt 0:00:41]} Rxb1 {[%emt 0:00:04]} 28. cxd5 {[%emt 0:00:07]} exd5 {[%emt 0:00:06][%mdl 4096] Endgame. KRN-KRN} (28... Rxc1 $2 {loses.} 29. dxc6 Ng6 (29... fxg4 $2 {is the wrong capture.} 30. c7 $18) (29... Rc2+ $2 30. Ke1 $18) 30. c7 $18) 29. Ne2 {[%emt 0:00:35]} f4 {[%emt 0:00:54]} ({Much less strong is} 29... fxg4 30. Rg3 Kf7 31. Rxg4 $19) 30. h3 {[%emt 0:04:14]} Rb2 {[%emt 0:02:28] [#] aiming for ...f3.} 31. Kf1 {[%emt 0:00:31]} f3 {[%emt 0:00:28]} 32. Ng1 {[%emt 0:01:03]} (32. Ng3 $142 Rb3 33. Rd2) 32... Rb3 {[%emt 0:00:07]} 33. Rd2 {[%emt 0:00:42]} Rxa3 {[%emt 0:00:11]} 34. Rb2 {[%emt 0:00:29]} Rb3 {[%emt 0:00:07]} 35. Ra2 {[%emt 0:00:33]} a3 {[%emt 0:00:12]} 36. Ra1 {[%emt 0:00:27] Wards off Rb1+} Kg7 {[%emt 0:00:10] [#] And now ...Kf6 would win.} 37. Ra2 {[%emt 0:00:32]} Rb1+ {[%emt 0:00:06] Weighted Error Value: White=0.56/Black=0.04 (flawless) .  Mistake:       	White=3     	---        Inaccurate:     	White=3     	---        OK:         	White=10    	Black=14     Best:        	---       	Black=3} 0-1

[Event "Swiss Championship 2024"]
[Site "Flims"]
[Date "2024.07.15"]
[Round "3.3"]
[White "Kurmann, Oliver"]
[Black "Fischer, Daniel"]
[Result "1/2-1/2"]
[ECO "C65"]
[WhiteElo "2428"]
[BlackElo "2372"]
[Annotator "TA"]
[PlyCount "61"]
[EventDate "2024.07.10"]
[EventType "tourn"]
[EventCountry "SUI"]
[SourceTitle "playchess.com"]
[Source "ChessBase"]
[SourceQuality "1"]
[TimeControl "40/5400+30:1800+30"]

{[%evp 9,61,17,16,14,18,12,23,4,19,13,15,16,24,17,27,16,16,24,9,13,17,12,19,0,10,5,13,0,0,0,0,0,0,0,15,11,9,0,0,0,0,0,0,0,0,0,0,0,0,0,0,0,0,0]} 1. e4 {[%emt 0:00:04]} e5 {[%emt 0:00:05]} 2. Nf3 {[%emt 0:00:12]} Nc6 {[%emt 0:00:04]} 3. Bb5 {[%emt 0:00:09]} Nf6 {[%emt 0:00:24]} 4. d3 {[%emt 0:00:22][%cal Bd2d3,Bd3d4][%mdl 32]} Bc5 {[%emt 0:00:18]} 5. Bxc6 {[%emt 0:00:16]} dxc6 {[%emt 0:00:18]} 6. O-O {[%emt 0:00:11]} (6. Nxe5 $2 {ist das falsche Schlagen.} Qd4 7. Qe2 Qxe5 $19) 6... Nd7 {[%emt 0:01:44]} 7. c3 {[%emt 0:03:20]} Bd6 {[%emt 0:00:12]} 8. d4 {[%emt 0:01:49] Weiß hat minimalen Vorteil.} O-O {[%emt 0:02:23]} 9. Bg5 {[%emt 0:00:17]} f6 {[%emt 0:01:47]} 10. Bh4 {[%emt 0:00:01]} Qe8 {[%emt 0:01:41]} 11. Nbd2 {[%emt 0:00:18]} a5 {[%emt 0:06:25]} 12. Bg3 {[%emt 0:08:56]} exd4 {[%emt 0:06:03]} 13. Bxd6 {[%emt 0:15:00]} cxd6 {[%emt 0:00:07]} 14. Nxd4 {[%emt 0:00:07] Die Stellung ist ausgeglichen.} Nc5 {[%emt 0:09:22][%cal Of6f5]} 15. Re1 {[%emt 0:12:15]} Qf7 {[%emt 0:06:07] Verhindert Nc4} 16. Re3 {[%emt 0:00:59] Wehrt Nd3 ab} a4 {[%emt 0:06:28]} 17. Qe2 {[%emt 0:10:24]} Be6 {[%emt 0:07:11]} 18. a3 {[%emt 0:01:12]} Rad8 {[%emt 0:08:40]} 19. Re1 {[%emt 0:00:19]} Rfe8 {[%emt 0:01:53]} 20. h3 {[%emt 0:00:23]} Bd7 {[%emt 0:02:59]} 21. Nf1 {[%emt 0:09:52]} d5 {[%emt 0:03:20]} 22. exd5 {[%emt 0:01:16]} Qxd5 {[%emt 0:00:33]} 23. Qc2 {[%emt 0:05:30]} Qf7 {[%emt 0:04:30]} 24. Ng3 {[%emt 0:01:12]} Rxe3 {[%emt 0:02:03]} 25. Rxe3 {[%emt 0:00:01]} Re8 {[%emt 0:00:35]} 26. Ne4 {[%emt 0:00:15]} Nxe4 {[%emt 0:05:21]} 27. Rxe4 {[%emt 0:00:02]} c5 {[%emt 0:03:04]} 28. Nf5 {[%emt 0:03:56]} Bxf5 {[%emt 0:03:53]} 29. Rxe8+ {[%emt 0:00:07]} Qxe8 {[%emt 0:00:04]} 30. Qxf5 {[%emt 0:00:02]} Qb5 {[%emt 0:02:58]} 31. Qd5+ {[%emt 0:27:13] Hier war wenig los.   Gewichteter Fehlerwert: Weiß=0.03 (makellos) /Schwarz=0.03 (makellos) .  OK:         	Weiß=12    	Schwarz=11    Bester:       	Weiß=1     	---} 1/2-1/2